[Event "European Online Club-ch-I 2021"]
[Site "Online"]
[Date "2021.03.27"]
[Round "7.5"]
[White "Batsiashvili, Nino"]
[Black "Saric, Ivan"]
[Result "1/2-1/2"]
[ECO "E90"]
[WhiteElo "2491"]
[BlackElo "2648"]
[Annotator "ChessBase"]
[PlyCount "152"]
[EventDate "2021.03.27"]
[EventType "team-tourn"]
[EventCountry "NET"]
[SourceTitle "playchess.com"]
[Source "ChessBase"]
[SourceQuality "1"]
[TimeControl "900+5"]

1. d4 {[%emt 0:00:00]} Nf6 {[%emt 0:00:03]} 2. c4 {[%emt 0:00:10]} c5 {[%emt 0:00:12]} 3. d5 {[%emt 0:00:02]} g6 {[%emt 0:00:00]} 4. Nc3 {[%emt 0:00:02]} d6 {[%emt 0:00:02]} 5. e4 {[%emt 0:00:02]} Bg7 {[%emt 0:00:01]} 6. Nf3 {[%emt 0:00:08]} O-O {[%emt 0:00:01]} 7. Bd3 {[%emt 0:00:12]} e6 {[%emt 0:00:11]} 8. O-O {[%emt 0:00:09]} exd5 {[%emt 0:00:02]} 9. exd5 {[%emt 0:00:00]} Bg4 {[%emt 0:00:04]} 10. h3 {[%emt 0:00:02]} Bxf3 {[%emt 0:00:01]} 11. Qxf3 {[%emt 0:00:00]} Nfd7 {[%emt 0:00:02]} 12. Qd1 {[%emt 0:00:15]} Na6 {[%emt 0:00:50]} 13. Re1 {[%emt 0:00:20]} Nc7 {[%emt 0:00:21]} 14. Bf1 {[%emt 0:00:18]} Re8 {[%emt 0:00:17]} 15. Be3 {[%emt 0:00:11]} a6 {[%emt 0:00:51]} 16. a4 {[%emt 0:00:08]} f5 {[%emt 0:00:38]} 17. Qd2 {[%emt 0:00:20]} Qf6 {[%emt 0:00:07]} 18. Bf4 {[%emt 0:02:42]} Ne5 {[%emt 0:00:10]} 19. a5 {[%emt 0:00:23]} Nf7 {[%emt 0:00:10]} 20. Qc2 {[%emt 0:00:23]} Rxe1 {[%emt 0:00:45]} 21. Rxe1 {[%emt 0:00:03]} Re8 {[%emt 0:00:01]} 22. Rb1 {[%emt 0:01:15]} g5 {[%emt 0:02:03]} 23. Bd2 {[%emt 0:00:04]} g4 {[%emt 0:00:00]} 24. Qd3 {[%emt 0:00:55]} Ne5 {[%emt 0:00:14]} 25. Qg3 {[%emt 0:00:02]} h5 {[%emt 0:00:18]} 26. hxg4 {[%emt 0:00:48]} fxg4 {[%emt 0:00:22]} 27. b4 {[%emt 0:01:08]} cxb4 {[%emt 0:08:13]} 28. Rxb4 {[%emt 0:00:03]} Rf8 {[%emt 0:00:18]} 29. Ne4 {[%emt 0:00:51]} Qg6 {[%emt 0:00:09]} 30. Rxb7 {[%emt 0:00:23]} Qxe4 {[%emt 0:00:34]} 31. Rxc7 {[%emt 0:00:03]} Qf5 {[%emt 0:00:09]} 32. c5 {[%emt 0:00:50]} dxc5 {[%emt 0:00:09]} 33. Rxg7+ {[%emt 0:01:19]} Kxg7 {[%emt 0:00:03]} 34. Bc3 {[%emt 0:00:02]} Kf6 {[%emt 0:00:06]} 35. Bd3 {[%emt 0:00:38]} Qg5 {[%emt 0:00:01]} 36. f4 {[%emt 0:00:03]} gxf3 {[%emt 0:00:05]} 37. Qxg5+ {[%emt 0:00:26]} Kxg5 {[%emt 0:00:01]} 38. Bxe5 {[%emt 0:00:01]} Re8 {[%emt 0:00:08]} 39. Bc7 {[%emt 0:00:28]} Re1+ {[%emt 0:00:03]} 40. Kf2 {[%emt 0:00:03]} fxg2 {[%emt 0:00:01]} 41. Kxg2 {[%emt 0:00:02]} Rd1 {[%emt 0:00:09]} 42. Bc4 {[%emt 0:00:22]} Rd4 {[%emt 0:00:04]} 43. Bxa6 {[%emt 0:00:13]} Rxd5 {[%emt 0:00:03]} 44. Bb7 {[%emt 0:00:03]} Rd7 {[%emt 0:00:03]} 45. a6 {[%emt 0:00:01]} Rxc7 {[%emt 0:00:03]} 46. a7 {[%emt 0:00:01]} Rxb7 {[%emt 0:00:02]} 47. a8=Q {[%emt 0:00:03]} Rb2+ {[%emt 0:00:01]} 48. Kf3 {[%emt 0:00:03]} Rb3+ {[%emt 0:00:03]} 49. Ke4 {[%emt 0:00:02]} Rb4+ {[%emt 0:00:02]} 50. Kd5 {[%emt 0:00:03]} h4 {[%emt 0:00:09]} 51. Kxc5 {[%emt 0:00:12]} Rf4 {[%emt 0:00:05]} 52. Kd5 {[%emt 0:00:31]} h3 {[%emt 0:00:05]} 53. Qh8 {[%emt 0:00:05]} Rh4 {[%emt 0:00:26]} 54. Qe5+ {[%emt 0:00:09]} Kg4 {[%emt 0:00:03]} 55. Qh2 {[%emt 0:00:08]} Kf3 {[%emt 0:00:07]} 56. Ke5 {[%emt 0:00:09]} Rh5+ {[%emt 0:00:03]} 57. Kf6 {[%emt 0:00:30]} Rh8 {[%emt 0:00:04]} 58. Kg7 {[%emt 0:00:11]} Rh4 {[%emt 0:00:04]} 59. Kg6 {[%emt 0:00:28]} Rh8 {[%emt 0:00:03]} 60. Qh1+ {[%emt 0:00:10]} Kg3 {[%emt 0:00:02]} 61. Qg1+ {[%emt 0:00:05]} Kf3 {[%emt 0:00:11]} 62. Qf1+ {[%emt 0:00:05]} Kg3 {[%emt 0:00:02]} 63. Qe1+ {[%emt 0:00:01]} Kg2 {[%emt 0:00:02]} 64. Qd2+ {[%emt 0:00:04]} Kg1 {[%emt 0:00:07]} 65. Qc1+ {[%emt 0:00:05]} Kg2 {[%emt 0:00:01]} 66. Qb2+ {[%emt 0:00:02]} Kg1 {[%emt 0:00:01]} 67. Qd4+ {[%emt 0:00:02]} Kg2 {[%emt 0:00:01]} 68. Qxh8 {[%emt 0:00:13]} h2 {[%emt 0:00:02]} 69. Qb2+ {[%emt 0:00:04]} Kg1 {[%emt 0:00:02]} 70. Qc1+ {[%emt 0:00:01]} Kg2 {[%emt 0:00:01]} 71. Qd2+ {[%emt 0:00:01]} Kg1 {[%emt 0:00:01]} 72. Qe1+ {[%emt 0:00:03]} Kg2 {[%emt 0:00:02]} 73. Qe2+ {[%emt 0:00:10]} Kg1 {[%emt 0:00:01]} 74. Kg5 {[%emt 0:00:38]} h1=Q {[%emt 0:00:03]} 75. Qe1+ {[%emt 0:00:03]} Kh2 {[%emt 0:00:05]} 76. Qxh1+ {[%emt 0:00:01]} Kxh1 {[%emt 0:00:01]} 1/2-1/2

[Event "European Online Club-ch-I 2021"]
[Site "Online"]
[Date "2021.03.27"]
[Round "7.6"]
[White "Heberla, Bartlomiej"]
[Black "Javakhishvili, Lela"]
[Result "0-1"]
[ECO "B07"]
[WhiteElo "2556"]
[BlackElo "2473"]
[Annotator "ChessBase"]
[PlyCount "42"]
[EventDate "2021.03.27"]
[EventType "team-tourn"]
[EventCountry "NET"]
[SourceTitle "playchess.com"]
[Source "ChessBase"]
[SourceQuality "1"]
[TimeControl "900+5"]

1. e4 {[%emt 0:00:00]} d6 {[%emt 0:00:06]} 2. d4 {[%emt 0:00:05]} Nf6 {[%emt 0:00:02]} 3. Bd3 {[%emt 0:00:01]} e5 {[%emt 0:00:06]} 4. c3 {[%emt 0:00:02]} d5 {[%emt 0:00:43]} 5. dxe5 {[%emt 0:00:09]} Nxe4 {[%emt 0:00:06]} 6. Nd2 {[%emt 0:00:19]} Nc6 {[%emt 0:00:29]} 7. Ngf3 {[%emt 0:01:38]} Bg4 {[%emt 0:00:08]} 8. Be2 {[%emt 0:00:41]} Bc5 {[%emt 0:00:37]} 9. O-O {[%emt 0:00:04]} O-O {[%emt 0:00:18]} 10. Nb3 {[%emt 0:00:03]} Bb6 {[%emt 0:00:14]} 11. Nfd4 {[%emt 0:02:41]} Bxe2 {[%emt 0:01:27]} 12. Qxe2 {[%emt 0:00:00]} Re8 {[%emt 0:00:25]} 13. f3 {[%emt 0:00:46]} Nc5 {[%emt 0:00:19]} 14. Nxc6 {[%emt 0:00:57]} Nxb3+ {[%emt 0:00:11]} 15. Kh1 {[%emt 0:00:09]} Nxc1 {[%emt 0:00:17]} 16. Raxc1 {[%emt 0:00:11]} bxc6 {[%emt 0:00:03]} 17. f4 {[%emt 0:00:00]} f6 {[%emt 0:00:41]} 18. e6 {[%emt 0:00:04]} f5 {[%emt 0:00:05]} 19. g4 {[%emt 0:00:02]} Qf6 {[%emt 0:00:04]} 20. Rce1 {[%emt 0:00:05]} Re7 {[%emt 0:00:27]} 21. gxf5 {[%emt 0:00:07]} Qxf5 {[%emt 0:00:08]} 0-1

[Event "European Online Club-ch-I 2021"]
[Site "Online"]
[Date "2021.03.27"]
[Round "7.7"]
[White "Atalik, Ekaterina"]
[Black "Polak, Tomas"]
[Result "0-1"]
[ECO "E17"]
[WhiteElo "2430"]
[BlackElo "2553"]
[Annotator "ChessBase"]
[PlyCount "102"]
[EventDate "2021.03.27"]
[EventType "team-tourn"]
[EventCountry "NET"]
[SourceTitle "playchess.com"]
[Source "ChessBase"]
[SourceQuality "1"]
[TimeControl "900+5"]

1. d4 {[%emt 0:00:00]} Nf6 {[%emt 0:00:05]} 2. Nf3 {[%emt 0:00:05]} b6 {[%emt 0:00:08]} 3. g3 {[%emt 0:00:05]} Bb7 {[%emt 0:00:03]} 4. Bg2 {[%emt 0:00:01]} e6 {[%emt 0:00:08]} 5. O-O {[%emt 0:00:05]} Be7 {[%emt 0:00:03]} 6. c4 {[%emt 0:00:02]} O-O {[%emt 0:00:06]} 7. Re1 {[%emt 0:00:02]} d5 {[%emt 0:00:07]} 8. cxd5 {[%emt 0:00:11]} exd5 {[%emt 0:00:03]} 9. Nc3 {[%emt 0:00:17]} Na6 {[%emt 0:00:06]} 10. a3 {[%emt 0:00:27]} c5 {[%emt 0:00:16]} 11. Bf4 {[%emt 0:00:11]} Nc7 {[%emt 0:00:27]} 12. Bxc7 {[%emt 0:00:49]} Qxc7 {[%emt 0:00:05]} 13. Rc1 {[%emt 0:00:01]} Rad8 {[%emt 0:01:46]} 14. dxc5 {[%emt 0:02:09]} bxc5 {[%emt 0:00:05]} 15. Na4 {[%emt 0:00:02]} Ne4 {[%emt 0:01:46]} 16. Nd2 {[%emt 0:01:21]} Qa5 {[%emt 0:00:16]} 17. Nxe4 {[%emt 0:01:00]} dxe4 {[%emt 0:00:03]} 18. Qc2 {[%emt 0:00:26]} Rd2 {[%emt 0:01:20]} 19. Qc3 {[%emt 0:00:06]} Qxc3 {[%emt 0:00:18]} 20. Rxc3 {[%emt 0:00:53]} Rc8 {[%emt 0:01:11]} 21. Rec1 {[%emt 0:00:57]} Rxe2 {[%emt 0:00:51]} 22. Bf1 {[%emt 0:01:24]} Rd2 {[%emt 0:00:08]} 23. b4 {[%emt 0:00:10]} Bf6 {[%emt 0:00:35]} 24. Rxc5 {[%emt 0:00:27]} Rcd8 {[%emt 0:00:53]} 25. Rc7 {[%emt 0:00:27]} Bd5 {[%emt 0:00:39]} 26. Rc8 {[%emt 0:01:03]} Kf8 {[%emt 0:00:40]} 27. Rxd8+ {[%emt 0:00:24]} Bxd8 {[%emt 0:00:03]} 28. Rc8 {[%emt 0:00:45]} Ke7 {[%emt 0:00:49]} 29. Nc3 {[%emt 0:00:53]} Bb7 {[%emt 0:00:45]} 30. Rc4 {[%emt 0:00:21]} e3 {[%emt 0:00:58]} 31. fxe3 {[%emt 0:00:07]} Bb6 {[%emt 0:00:04]} 32. Be2 {[%emt 0:00:04]} Bxe3+ {[%emt 0:00:10]} 33. Kf1 {[%emt 0:00:02]} Rd6 {[%emt 0:01:00]} 34. Nb5 {[%emt 0:01:11]} Rf6+ {[%emt 0:00:14]} 35. Ke1 {[%emt 0:00:09]} Rc6 {[%emt 0:00:32]} 36. Re4+ {[%emt 0:00:14]} Re6 {[%emt 0:00:02]} 37. Rxe6+ {[%emt 0:00:23]} Kxe6 {[%emt 0:00:04]} 38. Bc4+ {[%emt 0:00:01]} Ke7 {[%emt 0:00:07]} 39. a4 {[%emt 0:00:03]} f5 {[%emt 0:00:27]} 40. a5 {[%emt 0:00:09]} g5 {[%emt 0:00:04]} 41. Ke2 {[%emt 0:00:10]} Bg1 {[%emt 0:00:11]} 42. h3 {[%emt 0:00:13]} Bg2 {[%emt 0:00:09]} 43. Nxa7 {[%emt 0:00:32]} Bxa7 {[%emt 0:00:06]} 44. b5 {[%emt 0:00:01]} Bc5 {[%emt 0:00:11]} 45. b6 {[%emt 0:00:08]} Bxh3 {[%emt 0:00:06]} 46. Bd5 {[%emt 0:00:05]} Kd6 {[%emt 0:00:11]} 47. Bh1 {[%emt 0:00:06]} Ke5 {[%emt 0:00:07]} 48. Kd3 {[%emt 0:00:03]} Bf1+ {[%emt 0:00:03]} 49. Kc3 {[%emt 0:00:02]} Ba6 {[%emt 0:00:04]} 50. b7 {[%emt 0:00:05]} Ba7 {[%emt 0:00:05]} 51. Kb4 {[%emt 0:00:01]} g4 {[%emt 0:00:04]} 0-1

[Event "European Online Club-ch-I 2021"]
[Site "Online"]
[Date "2021.03.27"]
[Round "7.8"]
[White "Nayhebaver, Martin"]
[Black "Daulyte-Cornette, Deimante"]
[Result "1/2-1/2"]
[ECO "C60"]
[WhiteElo "2485"]
[BlackElo "2387"]
[Annotator "ChessBase"]
[PlyCount "77"]
[EventDate "2021.03.27"]
[EventType "team-tourn"]
[EventCountry "NET"]
[SourceTitle "playchess.com"]
[Source "ChessBase"]
[SourceQuality "1"]
[TimeControl "900+5"]

1. e4 {[%emt 0:00:00]} e5 {[%emt 0:00:14]} 2. Nf3 {[%emt 0:00:03]} Nc6 {[%emt 0:00:02]} 3. Bb5 {[%emt 0:00:02]} a6 {[%emt 0:00:03]} 4. Ba4 {[%emt 0:00:02]} g6 {[%emt 0:00:03]} 5. O-O {[%emt 0:00:05]} Bg7 {[%emt 0:00:08]} 6. c3 {[%emt 0:00:12]} d6 {[%emt 0:00:06]} 7. d4 {[%emt 0:00:18]} exd4 {[%emt 0:00:19]} 8. cxd4 {[%emt 0:01:06]} b5 {[%emt 0:00:03]} 9. Bb3 {[%emt 0:00:03]} Nge7 {[%emt 0:00:28]} 10. h3 {[%emt 0:00:23]} O-O {[%emt 0:00:03]} 11. Nc3 {[%emt 0:00:54]} Na5 {[%emt 0:00:05]} 12. Bc2 {[%emt 0:00:14]} Bb7 {[%emt 0:00:11]} 13. Rb1 {[%emt 0:01:50]} c5 {[%emt 0:00:19]} 14. d5 {[%emt 0:01:27]} Nc4 {[%emt 0:00:20]} 15. b3 {[%emt 0:00:53]} Bxc3 {[%emt 0:01:05]} 16. bxc4 {[%emt 0:00:03]} Bc8 {[%emt 0:00:21]} 17. Bd3 {[%emt 0:00:29]} b4 {[%emt 0:00:55]} 18. Bb2 {[%emt 0:00:35]} Bxb2 {[%emt 0:00:10]} 19. Rxb2 {[%emt 0:00:00]} f6 {[%emt 0:00:22]} 20. Ne1 {[%emt 0:00:42]} f5 {[%emt 0:00:25]} 21. Nf3 {[%emt 0:01:05]} fxe4 {[%emt 0:00:21]} 22. Bxe4 {[%emt 0:00:00]} Nf5 {[%emt 0:00:19]} 23. Re1 {[%emt 0:02:42]} Ra7 {[%emt 0:00:22]} 24. Rbe2 {[%emt 0:00:13]} Nh4 {[%emt 0:00:36]} 25. Nxh4 {[%emt 0:01:12]} Qxh4 {[%emt 0:00:00]} 26. Qd2 {[%emt 0:00:52]} Raf7 {[%emt 0:00:29]} 27. Qc2 {[%emt 0:00:32]} a5 {[%emt 0:00:34]} 28. Rf1 {[%emt 0:00:42]} Bd7 {[%emt 0:01:00]} 29. Qd2 {[%emt 0:00:16]} a4 {[%emt 0:00:49]} 30. Qd3 {[%emt 0:00:05]} Qg5 {[%emt 0:00:49]} 31. Kh2 {[%emt 0:00:04]} Qh5 {[%emt 0:01:51]} 32. Kg1 {[%emt 0:00:06]} Rf4 {[%emt 0:01:01]} 33. f3 {[%emt 0:00:11]} Rh4 {[%emt 0:00:38]} 34. Qd2 {[%emt 0:00:04]} Rhf4 {[%emt 0:00:34]} 35. Rfe1 {[%emt 0:00:03]} Qg5 {[%emt 0:00:21]} 36. Kh2 {[%emt 0:00:12]} Qh5 {[%emt 0:00:39]} 37. Kg1 {[%emt 0:00:05]} Qg5 {[%emt 0:01:07]} 38. Kh2 {[%emt 0:00:02]} Qh5 {[%emt 0:00:03]} 39. Kg1 {[%emt 0:00:02]} 1/2-1/2

[Event "European Online Club-ch-I 2021"]
[Site "Online"]
[Date "2021.03.27"]
[Round "7.9"]
[White "Arnaudov, G. Petar"]
[Black "Anton Guijarro, David"]
[Result "0-1"]
[ECO "A81"]
[WhiteElo "2471"]
[BlackElo "2673"]
[Annotator "ChessBase"]
[PlyCount "46"]
[EventDate "2021.03.27"]
[EventType "team-tourn"]
[EventCountry "NET"]
[SourceTitle "playchess.com"]
[Source "ChessBase"]
[SourceQuality "1"]
[TimeControl "900+5"]

1. d4 {[%emt 0:00:00]} f5 {[%emt 0:00:07]} 2. Nf3 {[%emt 0:00:04]} Nf6 {[%emt 0:00:02]} 3. g3 {[%emt 0:00:02]} g6 {[%emt 0:00:03]} 4. Bg2 {[%emt 0:00:01]} Bg7 {[%emt 0:00:01]} 5. O-O {[%emt 0:00:01]} O-O {[%emt 0:00:01]} 6. Nbd2 {[%emt 0:00:05]} e6 {[%emt 0:00:12]} 7. Re1 {[%emt 0:00:04]} d5 {[%emt 0:00:06]} 8. c4 {[%emt 0:00:05]} Ne4 {[%emt 0:00:20]} 9. Qc2 {[%emt 0:00:03]} Nc6 {[%emt 0:00:17]} 10. e3 {[%emt 0:00:05]} a5 {[%emt 0:00:06]} 11. a3 {[%emt 0:00:04]} a4 {[%emt 0:00:12]} 12. Nb1 {[%emt 0:00:12]} Na5 {[%emt 0:00:27]} 13. Nfd2 {[%emt 0:00:30]} c5 {[%emt 0:01:09]} 14. cxd5 {[%emt 0:00:13]} cxd4 {[%emt 0:00:20]} 15. Nxe4 {[%emt 0:00:45]} fxe4 {[%emt 0:00:03]} 16. Qxe4 {[%emt 0:00:16]} Nb3 {[%emt 0:00:05]} 17. dxe6 {[%emt 0:00:05]} Re8 {[%emt 0:00:06]} 18. e7 {[%emt 0:00:07]} Rxe7 {[%emt 0:00:04]} 19. Qd5+ {[%emt 0:00:13]} Be6 {[%emt 0:00:02]} 20. Qxd8+ {[%emt 0:00:18]} Rxd8 {[%emt 0:00:02]} 21. exd4 {[%emt 0:00:00]} Bf6 {[%emt 0:00:36]} 22. Nc3 {[%emt 0:00:32]} Nxa1 {[%emt 0:00:17]} 23. d5 {[%emt 0:00:02]} Bf5 {[%emt 0:00:44]} 0-1

[Event "European Online Club-ch-I 2021"]
[Site "Online"]
[Date "2021.03.27"]
[Round "7.10"]
[White "Mchedlishvili, Mikheil"]
[Black "Marechal, Andy"]
[Result "1-0"]
[ECO "C11"]
[WhiteElo "2570"]
[BlackElo "2332"]
[Annotator "ChessBase"]
[PlyCount "75"]
[EventDate "2021.03.27"]
[EventType "team-tourn"]
[EventCountry "NET"]
[SourceTitle "playchess.com"]
[Source "ChessBase"]
[SourceQuality "1"]
[TimeControl "900+5"]

1. e4 {[%emt 0:00:00]} e6 {[%emt 0:00:07]} 2. d4 {[%emt 0:00:04]} d5 {[%emt 0:00:02]} 3. Nc3 {[%emt 0:00:05]} Nf6 {[%emt 0:00:02]} 4. e5 {[%emt 0:00:03]} Nfd7 {[%emt 0:00:02]} 5. Nce2 {[%emt 0:00:04]} c5 {[%emt 0:00:05]} 6. c3 {[%emt 0:00:03]} cxd4 {[%emt 0:00:11]} 7. cxd4 {[%emt 0:00:02]} f6 {[%emt 0:00:01]} 8. f4 {[%emt 0:01:22]} Nc6 {[%emt 0:00:04]} 9. Nf3 {[%emt 0:00:02]} Be7 {[%emt 0:00:33]} 10. Be3 {[%emt 0:01:19]} O-O {[%emt 0:00:08]} 11. Nc3 {[%emt 0:00:40]} Qb6 {[%emt 0:02:44]} 12. Qd2 {[%emt 0:00:07]} a6 {[%emt 0:03:02]} 13. Bd3 {[%emt 0:00:22]} Nb4 {[%emt 0:00:40]} 14. Bb1 {[%emt 0:00:28]} Nb8 {[%emt 0:00:02]} 15. O-O {[%emt 0:00:20]} Bd7 {[%emt 0:00:02]} 16. a3 {[%emt 0:01:26]} N4c6 {[%emt 0:00:04]} 17. b4 {[%emt 0:00:06]} Na7 {[%emt 0:00:12]} 18. exf6 {[%emt 0:01:15]} Bxf6 {[%emt 0:00:18]} 19. Ne5 {[%emt 0:00:10]} Bxe5 {[%emt 0:01:07]} 20. dxe5 {[%emt 0:00:14]} Qd8 {[%emt 0:00:07]} 21. Qd1 {[%emt 0:03:02]} g6 {[%emt 0:01:45]} 22. Rf3 {[%emt 0:00:09]} Nbc6 {[%emt 0:00:15]} 23. Ne2 {[%emt 0:00:12]} Ne7 {[%emt 0:00:10]} 24. Rg3 {[%emt 0:00:17]} Kh8 {[%emt 0:00:31]} 25. Rh3 {[%emt 0:00:25]} Nac6 {[%emt 0:00:37]} 26. Qe1 {[%emt 0:00:06]} Nf5 {[%emt 0:00:07]} 27. Bc5 {[%emt 0:00:02]} Rg8 {[%emt 0:01:07]} 28. g4 {[%emt 0:00:02]} Nfe7 {[%emt 0:00:02]} 29. Bf2 {[%emt 0:00:31]} Rg7 {[%emt 0:02:32]} 30. Bh4 {[%emt 0:00:03]} Kg8 {[%emt 0:00:10]} 31. Bf6 {[%emt 0:00:32]} Rf7 {[%emt 0:00:02]} 32. Qh4 {[%emt 0:01:05]} Qb6+ {[%emt 0:00:11]} 33. Kg2 {[%emt 0:00:01]} a5 {[%emt 0:00:01]} 34. Qg5 {[%emt 0:00:29]} Kf8 {[%emt 0:00:40]} 35. Bxg6 {[%emt 0:00:46]} hxg6 {[%emt 0:00:02]} 36. Rh8+ {[%emt 0:00:03]} Ng8 {[%emt 0:00:02]} 37. Qxg6 {[%emt 0:00:38]} Nce7 {[%emt 0:00:06]} 38. Qg5 {[%emt 0:00:11]} 1-0

[Event "European Online Club-ch-I 2021"]
[Site "Online"]
[Date "2021.03.27"]
[Round "7.11"]
[White "Dishman, Stephen"]
[Black "Ibarra Jerez, Jose Carlos"]
[Result "0-1"]
[ECO "E60"]
[WhiteElo "2316"]
[BlackElo "2553"]
[Annotator "ChessBase"]
[PlyCount "62"]
[EventDate "2021.03.27"]
[EventType "team-tourn"]
[EventCountry "NET"]
[SourceTitle "playchess.com"]
[Source "ChessBase"]
[SourceQuality "1"]
[TimeControl "900+5"]

1. Nf3 {[%emt 0:00:00]} Nf6 {[%emt 0:00:04]} 2. c4 {[%emt 0:00:02]} d6 {[%emt 0:00:04]} 3. d4 {[%emt 0:00:15]} g6 {[%emt 0:00:03]} 4. b3 {[%emt 0:00:08]} Bg7 {[%emt 0:00:10]} 5. Bb2 {[%emt 0:00:02]} O-O {[%emt 0:00:07]} 6. g3 {[%emt 0:00:02]} c5 {[%emt 0:02:20]} 7. Bg2 {[%emt 0:00:02]} Ne4 {[%emt 0:00:32]} 8. O-O {[%emt 0:00:07]} Nc6 {[%emt 0:00:11]} 9. h3 {[%emt 0:00:02]} Qa5 {[%emt 0:00:20]} 10. e3 {[%emt 0:00:46]} f5 {[%emt 0:00:15]} 11. Qe2 {[%emt 0:00:53]} e5 {[%emt 0:00:12]} 12. dxe5 {[%emt 0:00:30]} dxe5 {[%emt 0:00:04]} 13. Rd1 {[%emt 0:01:31]} Qc7 {[%emt 0:00:35]} 14. Ne1 {[%emt 0:00:29]} Be6 {[%emt 0:00:24]} 15. Nd3 {[%emt 0:01:08]} b6 {[%emt 0:00:23]} 16. Na3 {[%emt 0:01:05]} a6 {[%emt 0:00:26]} 17. Kh2 {[%emt 0:00:49]} g5 {[%emt 0:02:16]} 18. f4 {[%emt 0:03:04]} Rae8 {[%emt 0:01:13]} 19. Bxe4 {[%emt 0:01:34]} fxe4 {[%emt 0:00:05]} 20. Nxe5 {[%emt 0:00:02]} Nxe5 {[%emt 0:00:09]} 21. Bxe5 {[%emt 0:00:02]} Bxe5 {[%emt 0:00:03]} 22. fxe5 {[%emt 0:00:01]} Qxe5 {[%emt 0:00:05]} 23. Rf1 {[%emt 0:00:03]} Rf3 {[%emt 0:00:16]} 24. Rxf3 {[%emt 0:01:09]} exf3 {[%emt 0:00:08]} 25. Qd1 {[%emt 0:00:29]} Qxe3 {[%emt 0:00:32]} 26. Qe1 {[%emt 0:00:07]} Bf5 {[%emt 0:00:12]} 27. Qxe3 {[%emt 0:00:11]} Rxe3 {[%emt 0:00:00]} 28. g4 {[%emt 0:00:06]} Re2+ {[%emt 0:00:18]} 29. Kg3 {[%emt 0:00:02]} Be4 {[%emt 0:00:01]} 30. h4 {[%emt 0:00:09]} gxh4+ {[%emt 0:00:33]} 31. Kxh4 {[%emt 0:00:22]} f2 {[%emt 0:00:03]} 0-1

[Event "European Online Club-ch-I 2021"]
[Site "Online"]
[Date "2021.03.27"]
[Round "7.12"]
[White "Cuenca Jimenez, Jose Fernando"]
[Black "Schwerteck, Michael"]
[Result "1-0"]
[ECO "A21"]
[WhiteElo "2506"]
[BlackElo "2113"]
[Annotator "ChessBase"]
[PlyCount "79"]
[EventDate "2021.03.27"]
[EventType "team-tourn"]
[EventCountry "NET"]
[SourceTitle "playchess.com"]
[Source "ChessBase"]
[SourceQuality "1"]
[TimeControl "900+5"]

1. c4 {[%emt 0:00:00]} e5 {[%emt 0:00:05]} 2. Nc3 {[%emt 0:00:03]} Bb4 {[%emt 0:00:03]} 3. Nd5 {[%emt 0:00:21]} Bc5 {[%emt 0:00:03]} 4. Nf3 {[%emt 0:00:05]} c6 {[%emt 0:00:27]} 5. Nc3 {[%emt 0:00:06]} d6 {[%emt 0:00:12]} 6. e3 {[%emt 0:00:03]} Nf6 {[%emt 0:00:36]} 7. d4 {[%emt 0:00:05]} exd4 {[%emt 0:00:13]} 8. exd4 {[%emt 0:00:03]} Bb4 {[%emt 0:00:22]} 9. Be2 {[%emt 0:00:11]} O-O {[%emt 0:00:20]} 10. O-O {[%emt 0:00:38]} h6 {[%emt 0:01:03]} 11. h3 {[%emt 0:00:12]} Re8 {[%emt 0:00:20]} 12. a3 {[%emt 0:01:16]} Bxc3 {[%emt 0:00:31]} 13. bxc3 {[%emt 0:00:04]} Ne4 {[%emt 0:00:54]} 14. Bd3 {[%emt 0:00:10]} Bf5 {[%emt 0:01:08]} 15. Qc2 {[%emt 0:00:17]} Nd7 {[%emt 0:01:03]} 16. Rb1 {[%emt 0:00:21]} b6 {[%emt 0:00:09]} 17. Re1 {[%emt 0:00:15]} d5 {[%emt 0:00:36]} 18. Bf4 {[%emt 0:00:27]} Qf6 {[%emt 0:01:09]} 19. Be5 {[%emt 0:00:57]} Nxe5 {[%emt 0:00:55]} 20. dxe5 {[%emt 0:00:04]} Qe7 {[%emt 0:01:05]} 21. Nd4 {[%emt 0:01:09]} Bd7 {[%emt 0:00:07]} 22. a4 {[%emt 0:01:54]} Nc5 {[%emt 0:00:20]} 23. cxd5 {[%emt 0:00:04]} Nxd3 {[%emt 0:00:25]} 24. Qxd3 {[%emt 0:00:09]} cxd5 {[%emt 0:00:02]} 25. f4 {[%emt 0:00:21]} Qh4 {[%emt 0:00:45]} 26. Qf3 {[%emt 0:01:15]} Rac8 {[%emt 0:00:22]} 27. Re3 {[%emt 0:00:37]} Rc4 {[%emt 0:00:08]} 28. Qxd5 {[%emt 0:00:35]} Rc7 {[%emt 0:01:40]} 29. Qf3 {[%emt 0:01:19]} Rec8 {[%emt 0:00:14]} 30. Rf1 {[%emt 0:00:23]} Bc6 {[%emt 0:00:32]} 31. Nxc6 {[%emt 0:00:18]} Rxc6 {[%emt 0:00:00]} 32. f5 {[%emt 0:00:12]} Qe7 {[%emt 0:00:52]} 33. Qg3 {[%emt 0:01:08]} Kh7 {[%emt 0:00:12]} 34. Rf4 {[%emt 0:00:21]} Rc5 {[%emt 0:00:19]} 35. f6 {[%emt 0:00:29]} Qf8 {[%emt 0:00:14]} 36. fxg7 {[%emt 0:00:11]} Qxg7 {[%emt 0:00:03]} 37. Rg4 {[%emt 0:00:01]} Qf8 {[%emt 0:00:08]} 38. Qf3 {[%emt 0:00:05]} R8c6 {[%emt 0:00:16]} 39. e6 {[%emt 0:00:16]} f5 {[%emt 0:00:13]} 40. e7 {[%emt 0:00:05]} 1-0

[Event "European Online Club-ch-I 2021"]
[Site "Online"]
[Date "2021.03.27"]
[Round "7.13"]
[White "Skytte, Rasmus"]
[Black "Moranda, Wojciech"]
[Result "1/2-1/2"]
[ECO "B22"]
[WhiteElo "2381"]
[BlackElo "2618"]
[Annotator "ChessBase"]
[PlyCount "27"]
[EventDate "2021.03.27"]
[EventType "team-tourn"]
[EventCountry "NET"]
[SourceTitle "playchess.com"]
[Source "ChessBase"]
[SourceQuality "1"]
[TimeControl "900+5"]

1. e4 {[%emt 0:00:00]} c5 {[%emt 0:00:03]} 2. c3 {[%emt 0:00:04]} d5 {[%emt 0:00:02]} 3. exd5 {[%emt 0:00:03]} Qxd5 {[%emt 0:00:02]} 4. d4 {[%emt 0:00:03]} Nf6 {[%emt 0:00:02]} 5. Nf3 {[%emt 0:00:04]} e6 {[%emt 0:00:01]} 6. Bd3 {[%emt 0:00:03]} Be7 {[%emt 0:00:12]} 7. O-O {[%emt 0:00:04]} O-O {[%emt 0:00:06]} 8. c4 {[%emt 0:00:04]} Qh5 {[%emt 0:00:36]} 9. Be2 {[%emt 0:00:04]} cxd4 {[%emt 0:04:52]} 10. Ng5 {[%emt 0:00:26]} Qg6 {[%emt 0:00:03]} 11. Bd3 {[%emt 0:00:06]} Qh5 {[%emt 0:00:03]} 12. Be2 {[%emt 0:00:02]} Qg6 {[%emt 0:00:02]} 13. Bd3 {[%emt 0:00:02]} Qh5 {[%emt 0:00:01]} 14. Be2 {[%emt 0:00:01]} 1/2-1/2